fUSD/lending_fUSD_20260227
["ID","MTS","AMOUNT","RATE_DAILY","PERIOD"]
[406767261,1772169032116,-500.0,0.000103,2]
[406767262,1772169032128,-500.0,0.000103,2]
[406767263,1772169032138,-500.0,0.000103,2]
[406767264,1772169032147,-500.0,0.000103,2]
[406767265,1772169032156,-500.0,0.000103,2]
[406767266,1772169032166,-500.0,0.000103,2]
[406767267,1772169032176,-500.0,0.000103,2]
[406767268,1772169032185,-500.0,0.000103,2]
[406767269,1772169032194,-500.0,0.000103,2]
[406767270,1772169032204,-500.0,0.000103,2]
[406767271,1772169032213,-500.0,0.000103,2]
[406767272,1772169032223,-500.0,0.000103,2]
[406767273,1772169032231,-500.0,0.000103,2]
[406767274,1772169032240,-500.0,0.000103,2]
[406767275,1772169032250,-500.0,0.000103,2]
[406767276,1772169032259,-500.0,0.000103,2]
[406767277,1772169032269,-500.0,0.000103,2]
[406767278,1772169032278,-500.0,0.000103,2]
[406767279,1772169032289,-500.0,0.000103,2]
[406767280,1772169032300,-500.0,0.000103,2]
[406767281,1772169032310,-500.0,0.000103,2]
[406767282,1772169032319,-500.0,0.000103,2]
[406767283,1772169032329,-500.0,0.000103,2]
[406767284,1772169032338,-500.0,0.000103,2]
[406767285,1772169032347,-500.0,0.000103,2]
[406767286,1772169032356,-500.0,0.000103,2]
[406767287,1772169032365,-500.0,0.000103,2]
[406767288,1772169032375,-500.0,0.000103,2]
[406767289,1772169032384,-600.0,0.000103,2]
[406767290,1772169032394,-500.0,0.000103,2]
[406767291,1772169032403,-500.0,0.000103,2]
[406767292,1772169032413,-500.0,0.000103,2]
[406767293,1772169032422,-500.0,0.000103,2]
[406767295,1772169032431,-543.75451416,0.000103,2]
[406767297,1772169032441,-500.0,0.000103,2]
[406767300,1772169032451,-500.0,0.000103,2]
[406767303,1772169032460,-869.50668288,0.000103,2]
[406767306,1772169032470,-888.46058708,0.000103,2]
[406767308,1772169032479,-500.0,0.000103,2]
[406767310,1772169032491,-500.0,0.000103,2]
[406767312,1772169032501,-727.54176208,0.000103,2]
[406767314,1772169032511,-563.07260655,0.000103,2]
[406767316,1772169032520,-500.0,0.000103,2]
[406767318,1772169032530,-500.0,0.000103,2]
[406767319,1772169032540,-500.0,0.000103,2]
[406767320,1772169032550,-500.0,0.000103,2]
[406767321,1772169032559,-500.0,0.000103,2]
[406767322,1772169032571,-500.0,0.000103,2]
[406767323,1772169032581,-503.2038976,0.000103,2]
[406767324,1772169032590,-500.0,0.000103,2]
[406767325,1772169032600,-500.0,0.000103,2]
[406767326,1772169032609,-500.0,0.000103,2]
[406767327,1772169032619,-869.88788903,0.000103,2]
[406767328,1772169032629,-244.54912065,0.000103,2]
[406767329,1772169032641,-282.42621862,0.000103,2]
[406767330,1772169032651,-608.03658136,0.000103,2]
[406767331,1772169032660,-123.66349292,0.000103,2]
[406767332,1772169032671,-376.33650708,0.000103,2]
[406767333,1772169032680,-623.66349292,0.000103,2]
[406767334,1772169032708,-55.87746214,0.000103,2]
[406767335,1772169032727,-195.0,0.00010323,2]
[406767336,1772169032738,-383.46812614,0.00010715,2]
[406767337,1772169032748,-317.65441172,0.00010738,2]
[406767338,1772169032760,-2454.25531392,0.00010738,2]
[406767343,1772169038104,-9520.55027436,0.00010738,2]
[406767344,1772169038114,-501.84472279,0.00010829,2]
[406767345,1772169038359,-163.76224101,0.00010829,2]
[406767346,1772169038376,-500.0,0.00010829,2]
[406767347,1772169038385,-500.0,0.00010829,2]
[406767348,1772169038394,-500.0,0.00010829,2]
[406767349,1772169038405,-500.0,0.00010829,2]
[406767350,1772169038414,-500.44493278,0.00010829,2]
[406767351,1772169038423,-500.0,0.00010829,2]
[406767352,1772169038433,-504.03602982,0.00010829,2]
[406767353,1772169038442,-500.0,0.00010829,2]
[406767354,1772169038451,-500.0,0.00010829,2]
[406767355,1772169038461,-500.0,0.00010829,2]
[406767356,1772169038470,-590.44665858,0.00010829,2]
[406767357,1772169038481,-5556.85,0.0001085,2]
[406767359,1772169038496,-166.66,0.00010888,2]
[406767361,1772169038506,-173.07,0.00011032,2]
[406767363,1772169038515,-150.0,0.00011032,2]
[406767365,1772169038526,-3420.74,0.00011085,2]
[406767367,1772169038537,-161.68029981,0.00011111,2]
[406767369,1772169038545,-500.0,0.00011111,2]
[406767371,1772169038554,-500.0,0.00011111,2]
[406767373,1772169038564,-264.25675022,0.00011111,2]
[406767374,1772169038574,-500.0,0.00011111,2]
[406767377,1772169038584,-500.0,0.00011111,2]
[406767378,1772169038592,-384.38870593,0.00011111,2]
[406767380,1772169038602,-500.0,0.00011111,2]
[406767382,1772169038611,-500.0,0.00011111,2]
[406767384,1772169038620,-500.0,0.00011111,2]
[406767386,1772169038630,-500.0,0.00011111,2]
[406767387,1772169038640,-500.0,0.00011111,2]
[406767388,1772169038649,-500.0,0.00011111,2]
[406767389,1772169038658,-500.0,0.00011111,2]
[406767390,1772169038668,-500.0,0.00011111,2]
[406767391,1772169038678,-500.0,0.00011111,2]
[406767392,1772169038687,-500.0,0.00011111,2]
[406767393,1772169038696,-500.0,0.00011111,2]
[406767394,1772169038707,-500.0,0.00011111,2]
[406767395,1772169038717,-500.0,0.00011111,2]
[406767396,1772169038726,-500.0,0.00011111,2]
[406767397,1772169038735,-500.0,0.00011111,2]
[406767398,1772169038744,-500.0,0.00011111,2]
[406767399,1772169038753,-500.0,0.00011111,2]
[406767400,1772169038763,-500.0,0.00011111,2]
[406767401,1772169038772,-500.0,0.00011111,2]
[406767402,1772169038782,-500.0,0.00011111,2]
[406767403,1772169038791,-500.0,0.00011111,2]
[406767404,1772169038801,-500.0,0.00011111,2]
[406767405,1772169038811,-500.0,0.00011111,2]
[406767406,1772169038820,-500.0,0.00011111,2]
[406767407,1772169038830,-500.0,0.00011111,2]
[406767408,1772169038839,-500.0,0.00011111,2]
[406767409,1772169038848,-500.0,0.00011111,2]
[406767410,1772169038857,-500.0,0.00011111,2]
[406767411,1772169038866,-648.52975777,0.00011111,2]
[406767412,1772169038876,-500.0,0.00011111,2]
[406767413,1772169038885,-500.0,0.00011111,2]
[406767414,1772169038894,-500.0,0.00011111,2]
[406767415,1772169038904,-500.0,0.00011111,2]
[406767416,1772169038913,-300.0,0.00011111,2]
[406767417,1772169038922,-2000000.0,0.00011112,2]
[406767418,1772169038931,-2141.72334743,0.0001112,2]
[406767419,1772169038941,-195.0,0.0001122,2]
[406767420,1772169038952,-195.0,0.0001122,2]
[406767421,1772169038962,-1235.6,0.00011222,2]
[406767422,1772169038971,-383.46812614,0.00011229,2]
[406767423,1772169038982,-166.66,0.00011247,2]
[406767424,1772169038991,-500.0,0.00011266,2]
[406767425,1772169039002,-1150.585,0.00011329,2]
[406767426,1772169039011,-298.651,0.00011329,2]
[406767427,1772169039021,-999.99,0.00011329,2]
[406767428,1772169039031,-8712.46,0.00011329,2]
[406767429,1772169039040,-299.99,0.00011329,2]
[406767430,1772169039050,-150.99,0.00011329,2]
[406767431,1772169039061,-3715.74,0.00011329,2]
[406767432,1772169039071,-9999.99,0.00011329,2]
[406767433,1772169039080,-724.51,0.00011329,2]
[406767434,1772169039089,-1200.0,0.00011329,2]
[406767435,1772169039102,-1000.0,0.00011377,2]
[406767436,1772169039112,-1000.0,0.00011377,2]
[406767437,1772169039122,-1000.0,0.00011377,2]
[406767438,1772169039131,-1000.0,0.00011377,2]
[406767439,1772169039141,-1000.0,0.00011377,2]
[406767440,1772169039151,-502.09548261,0.00011377,2]
[406767441,1772169039161,-500.0,0.00011377,2]
[406767442,1772169039170,-166.66,0.00011606,2]
[406767443,1772169039180,-359.698643,0.00011851,2]
[406767444,1772169039190,-214.0,0.00011852,2]
[406767445,1772169039200,-501.85175183,0.00011924,2]
[406767446,1772169039209,-500.0,0.00011924,2]
[406767447,1772169039219,-1030.89081199,0.00011924,2]
[406767448,1772169039229,-166.66,0.00011966,2]
[406767449,1772169039239,-1659.0,0.00012044,2]
[406767450,1772169039249,-316.0,0.00012044,2]
[406767451,1772169039258,-299.748869,0.00012056,2]
[406767452,1772169039268,-152.0,0.00012068,2]
[406767453,1772169039277,-369.09020316,0.0001212,2]
[406767454,1772169039287,-7726.77898904,0.0001212,2]
[406767455,1772169039296,-173.07,0.00012135,2]
[406767456,1772169039306,-320.0,0.00012171,2]
[406767457,1772169039315,-218.0,0.00012171,2]
[406767458,1772169039324,-1925.0,0.00012196,2]
[406767459,1772169039334,-278.0,0.00012196,2]
[406767460,1772169039344,-942.12693773,0.000122,2]
[406767461,1772169039353,-961241.3632,0.000122,2]
[406767462,1772169039362,-234.0,0.0001222,2]
[406767463,1772169039371,-2500.0,0.00012275,2]
[406767464,1772169039381,-2056.56990172,0.000123,3]
[406767465,1772169039390,-9682.84950861,0.000123,3]
[406767466,1772169039400,-5484.79905403,0.000123,3]
[406767467,1772169039409,-166.66,0.00012325,2]
[406767468,1772169039418,-1505.58790746,0.00012373,2]
[406767469,1772169039428,-561.73389426,0.00012374,2]
[406767470,1772169039438,-500.0,0.00012374,2]
[406767471,1772169039449,-227.198441,0.00012374,2]
[406767472,1772169039458,-151.0,0.00012468,2]
[406767473,1772169039467,-151.0,0.00012468,2]
[406767474,1772169039477,-151.0,0.00012468,2]
[406767475,1772169039487,-151.0,0.00012468,2]
[406767476,1772169039501,-151.0,0.00012468,2]
[406767477,1772169039511,-151.0,0.00012468,2]
[406767478,1772169039520,-151.0,0.00012468,2]
[406767479,1772169039531,-151.0,0.00012468,2]
[406767480,1772169039541,-151.0,0.00012468,2]
[406767481,1772169039552,-151.0,0.00012468,2]
[406767482,1772169039563,-151.0,0.00012468,2]
[406767483,1772169039573,-151.0,0.00012468,2]
[406767484,1772169039583,-151.0,0.00012468,2]
[406767485,1772169039593,-151.0,0.00012468,2]
[406767486,1772169039603,-151.0,0.00012468,2]
[406767487,1772169039612,-151.0,0.00012468,2]
[406767488,1772169039623,-151.0,0.00012468,2]
[406767489,1772169039632,-151.0,0.00012468,2]
[406767490,1772169039642,-151.0,0.00012468,2]
[406767491,1772169039652,-151.0,0.00012468,2]
[406767492,1772169039661,-970.48795508,0.00012475,3]
[406767493,1772169039670,-285.08183838,0.0001259,2]
[406767494,1772169039680,-166.66,0.00012685,2]
[406767495,1772169039689,-159.55571916,0.0001269,2]
[406767496,1772169039698,-1000.0,0.0001269,2]
[406767497,1772169039707,-500.0,0.0001289,2]
[406767498,1772169039717,-500.0,0.0001289,2]
[406767499,1772169039726,-501.78946227,0.0001289,2]
[406767500,1772169039736,-500.0,0.0001289,2]
[406767501,1772169039745,-500.0,0.0001289,2]
[406767502,1772169039754,-500.0,0.0001289,2]
[406767503,1772169039764,-500.0,0.0001289,2]
[406767504,1772169039773,-500.0,0.0001289,2]
[406767505,1772169039783,-500.0,0.0001289,2]
[406767506,1772169039793,-500.0,0.0001289,2]
[406767507,1772169039802,-500.0,0.0001289,2]
[406767508,1772169039812,-500.0,0.0001289,2]
[406767509,1772169039822,-500.0,0.0001289,2]
[406767510,1772169039831,-500.0,0.0001289,2]
[406767511,1772169039840,-500.0,0.0001289,2]
[406767512,1772169039850,-500.0,0.0001289,2]
[406767513,1772169039863,-500.0,0.0001289,2]
[406767514,1772169039872,-500.0,0.0001289,2]
[406767515,1772169039882,-500.0,0.0001289,2]
[406767516,1772169039892,-500.0,0.0001289,2]
[406767517,1772169039902,-500.0,0.0001289,2]
[406767518,1772169039912,-500.0,0.0001289,2]
[406767519,1772169039922,-500.0,0.0001289,2]
[406767520,1772169039931,-500.0,0.0001289,2]
[406767521,1772169039940,-500.0,0.0001289,2]
[406767522,1772169039950,-500.0,0.0001289,2]
[406767523,1772169039959,-500.0,0.0001289,2]
[406767524,1772169039969,-500.0,0.0001289,2]
[406767525,1772169039979,-500.0,0.0001289,2]
[406767526,1772169039989,-500.0,0.0001289,2]
[406767527,1772169039998,-500.0,0.0001289,2]
[406767528,1772169040007,-500.0,0.0001289,2]
[406767529,1772169040017,-500.0,0.0001289,2]
[406767530,1772169040026,-500.0,0.0001289,2]
[406767531,1772169040035,-500.0,0.0001289,2]
[406767532,1772169040046,-500.0,0.0001289,2]
[406767533,1772169040056,-500.0,0.0001289,2]
[406767534,1772169040066,-500.0,0.0001289,2]
[406767535,1772169040075,-500.0,0.0001289,2]
[406767536,1772169040086,-500.0,0.0001289,2]
[406767537,1772169040096,-500.0,0.0001289,2]
[406767538,1772169040106,-500.0,0.0001289,2]
[406767539,1772169040116,-500.0,0.0001289,2]
[406767540,1772169040125,-500.0,0.0001289,2]
[406767541,1772169040135,-500.0,0.0001289,2]
[406767542,1772169040145,-500.0,0.0001289,2]
[406767543,1772169040155,-500.0,0.0001289,2]
[406767544,1772169040164,-500.0,0.0001289,2]
[406767545,1772169040174,-500.0,0.0001289,2]
[406767546,1772169040183,-500.0,0.0001289,2]
[406767547,1772169040193,-500.0,0.0001289,2]
[406767548,1772169040202,-500.0,0.0001289,2]
[406767549,1772169040212,-500.0,0.0001289,2]
[406767552,1772169040221,-500.0,0.0001289,2]
[406767553,1772169040231,-500.0,0.0001289,2]
[406767554,1772169040240,-500.0,0.0001289,2]
[406767555,1772169040250,-500.0,0.0001289,2]
[406767556,1772169040259,-500.0,0.0001289,2]
[406767557,1772169040269,-500.0,0.0001289,2]
[406767558,1772169040280,-500.0,0.0001289,2]
[406767559,1772169040290,-500.0,0.0001289,2]
[406767560,1772169040300,-500.0,0.0001289,2]
[406767561,1772169040310,-526.98589059,0.0001289,2]
[406767562,1772169040322,-500.0,0.0001289,2]
[406767563,1772169040334,-500.0,0.0001289,2]
[406767564,1772169040346,-500.0,0.0001289,2]
[406767565,1772169040359,-500.0,0.0001289,2]
[406767566,1772169040371,-500.0,0.0001289,2]
[406767567,1772169040382,-500.0,0.0001289,2]
[406767568,1772169040393,-500.0,0.0001289,2]
[406767569,1772169040403,-500.0,0.0001289,2]
[406767570,1772169040415,-500.0,0.0001289,2]
[406767571,1772169040427,-500.0,0.0001289,2]
[406767572,1772169040438,-727.93200895,0.0001289,2]
[406767573,1772169040450,-173.07,0.00013238,2]
[406767574,1772169040461,-3240.0,0.00013425,2]
[406767575,1772169040472,-500.0,0.00013698,2]
[406767576,1772169040484,-500.0,0.00013698,2]
[406767577,1772169040501,-500.0,0.00013698,2]
[406767578,1772169040512,-500.0,0.00013698,2]
[406767579,1772169040523,-500.0,0.00013698,2]
[406767580,1772169040537,-500.0,0.00013698,2]
[406767581,1772169040548,-500.0,0.00013698,2]
[406767582,1772169040559,-500.0,0.00013698,2]
[406767583,1772169040572,-500.0,0.00013698,2]
[406767584,1772169040582,-500.0,0.00013698,2]
[406767585,1772169040594,-500.0,0.00013698,2]
[406767586,1772169040606,-500.0,0.00013698,2]
[406767587,1772169040620,-500.0,0.00013698,2]
[406767588,1772169040631,-500.0,0.00013698,2]
[406767589,1772169040643,-500.0,0.00013698,2]
[406767590,1772169040654,-500.0,0.00013698,2]
[406767591,1772169040666,-500.0,0.00013698,2]
[406767592,1772169040677,-500.0,0.00013698,2]
[406767593,1772169040689,-500.0,0.00013698,2]
[406767594,1772169040703,-500.0,0.00013698,2]
[406767595,1772169040715,-500.0,0.00013698,2]
[406767596,1772169040725,-500.0,0.00013698,2]
[406767597,1772169040737,-500.0,0.00013698,2]
[406767598,1772169040749,-500.0,0.00013956,2]
[406767599,1772169040761,-173.07,0.00014341,2]
[406767600,1772169040772,-4210.07,0.00014853,2]
[406767601,1772169040785,-504.0,0.0001489,2]
[406767602,1772169040796,-250.0,0.00015,2]
[406767603,1772169040808,-173.07,0.00015444,2]
[406767604,1772169040820,-419.35,0.00015471,2]
[406767605,1772169040830,-150.0,0.00015492,2]
[406767606,1772169040841,-2141.72334736,0.00015742,2]
[406767607,1772169040853,-9999.99,0.00016116,2]
[406767608,1772169040864,-187.7,0.00016375,2]
[406767609,1772169040880,-173.07,0.00016548,2]
[406767610,1772169040892,-300.0,0.00017,2]
[406767611,1772169040904,-151.0,0.0001711,2]
[406767612,1772169040914,-160.0,0.00017354,2]
[406767613,1772169040926,-174.00015664,0.00017354,2]
[406767614,1772169040937,-2618.240589,0.00017592,7]
[406767615,1772169040948,-571.062901,0.00017656,7]
[406767616,1772169040958,-150.0,0.00017699,2]
[406767617,1772169040968,-150.0,0.00017699,2]
[406767618,1772169040979,-150.0,0.00017699,2]
[406767619,1772169040988,-255.24410738,0.00017699,2]
[406767620,1772169040999,-150.0,0.00017699,2]
[406767621,1772169041011,-500.0,0.00017699,2]
[406767622,1772169041024,-150.0,0.00017699,2]
[406767623,1772169041037,-150.0,0.00017699,2]
[406767624,1772169041047,-150.0,0.00017699,2]
[406767625,1772169041057,-187.45505356,0.00017754,2]
[406767626,1772169041066,-150.0,0.00017754,2]
[406767627,1772169041076,-150.0,0.00017754,2]
[406767628,1772169041087,-500.0,0.00017754,2]
[406767629,1772169041099,-150.0,0.00017754,2]
[406767630,1772169041110,-150.0,0.00017754,2]
[406767631,1772169041122,-500.0,0.00017808,2]
[406767632,1772169041135,-500.0,0.00017808,2]
[406767633,1772169041145,-598.85251269,0.00017808,2]
[406767634,1772169041155,-500.0,0.00017808,2]
[406767635,1772169041165,-500.0,0.00017808,2]
[406767636,1772169041175,-250.0,0.00017809,2]
[406767638,1772169041185,-212.28374388,0.00017809,2]
[406767639,1772169041195,-500.0,0.00017809,2]
[406767640,1772169041206,-205.02874312,0.00017809,2]
[406767641,1772169041216,-150.0,0.00017809,2]
[406767642,1772169041226,-500.0,0.00017863,2]
[406767643,1772169041236,-158.41955894,0.00017863,2]
[406767644,1772169041246,-151.0,0.0001789,2]
[406767645,1772169041256,-1131.98391739,0.0001789,2]
[406767646,1772169041266,-500.0,0.00017918,2]
[406767647,1772169041276,-500.0,0.00017973,2]
[406767648,1772169041286,-172.10662643,0.00017973,2]
[406767649,1772169041297,-305.29644962,0.00017973,2]
[406767650,1772169041307,-504.20237615,0.00017973,2]
[406767651,1772169041318,-202.55697905,0.00017973,2]
[406767652,1772169041328,-500.0,0.00017973,2]
[406767653,1772169041341,-500.0,0.00017973,2]
[406767654,1772169041355,-536.48141265,0.00017973,2]
[406767655,1772169041366,-172.9,0.00017999,2]
[406767656,1772169041377,-670004.22454012,0.00018,2]
[406767657,1772169041388,-109435.92597808,0.00018,2]
[406767658,1772169041398,-1918534.32301825,0.00018,2]
[406767659,1772169041782,-219.62898679,0.0001212,2]
[406767660,1772169041794,-30377.24655173,0.00018,2]
[406767661,1772169041806,-9941.74180896,0.00018,2]
[406767662,1772169041819,-333.47606623,0.00018,2]
[406767663,1772169041835,-449.495,0.00018,2]
[406767664,1772169041868,-47458.84249274,0.00018,2]
[406767667,1772169045319,-220003.11743508,0.00018,2]
[406767680,1772169046039,-261.187,0.00018,2]
[406767706,1772170232280,-413.12333169,9.823e-05,2]
[406767707,1772170232338,-786.87666831,9.823e-05,2]
[406767708,1772170232349,-255.24410738,9.824e-05,2]
[406767709,1772170232358,-150.0,9.824e-05,2]
[406767710,1772170232367,-150.0,9.824e-05,2]
[406767711,1772170232377,-500.0,9.824e-05,2]
[406767712,1772170232386,-150.0,9.824e-05,2]
[406767713,1772170232395,-150.0,9.824e-05,2]
[406767714,1772170232404,-150.0,9.879e-05,2]
[406767715,1772170232414,-500.0,9.879e-05,2]
[406767716,1772170232423,-150.0,9.879e-05,2]
[406767717,1772170232433,-189.52162795,9.879e-05,2]
[406767718,1772170232442,-937.24212506,9.9e-05,2]
[406767719,1772170232452,-195.0,9.918e-05,2]
[406767720,1772170232461,-150.0,9.925e-05,2]
[406767721,1772170232469,-150.0,9.925e-05,2]
[406767722,1772170232479,-195.0,9.932e-05,2]
[406767723,1772170232489,-195.0,9.932e-05,2]
[406767724,1772170232498,-500.0,9.934e-05,2]
[406767725,1772170232508,-205.02874312,9.934e-05,2]
[406767726,1772170232526,-212.28374388,9.934e-05,2]
[406767727,1772170232537,-189.52162795,9.939e-05,2]
[406767728,1772170232546,-150.0,9.98e-05,2]
[406767729,1772170232555,-187.45505356,9.98e-05,2]
[406767730,1772170232565,-151.0,9.986e-05,2]
[406767731,1772170232575,-151.0,9.986e-05,2]
[406767732,1772170232584,-150.0,9.988e-05,2]
[406767733,1772170232594,-561.73389426,9.988e-05,2]
[406767734,1772170232603,-500.0,9.988e-05,2]
[406767735,1772170232614,-179.23187786,9.988e-05,2]
[406767736,1772170232623,-500.0,9.988e-05,2]
[406767737,1772170232634,-595.33073178,9.988e-05,2]
[406767738,1772170232643,-500.0,9.988e-05,2]
[406767739,1772170232653,-101482.73171389,9.989e-05,2]
[406767740,1772170232665,-365724.28418163,9.989e-05,2]
[406767741,1772170232676,-1254.41808677,9.989e-05,2]
[406767743,1772170238247,-161.68029981,9.988e-05,2]
[406767744,1772170238257,-500.0,9.988e-05,2]
[406767745,1772170238266,-500.0,9.988e-05,2]
[406767746,1772170238275,-500.0,9.988e-05,2]
[406767747,1772170238285,-500.0,9.988e-05,2]
[406767748,1772170238295,-264.25675022,9.988e-05,2]
[406767749,1772170238307,-500.0,9.988e-05,2]
[406767750,1772170238317,-500.0,9.988e-05,2]
[406767751,1772170238326,-500.0,9.988e-05,2]
[406767752,1772170238335,-384.38870593,9.988e-05,2]
[406767753,1772170238345,-500.0,9.988e-05,2]
[406767754,1772170238355,-196.79646285,9.988e-05,2]
[406767755,1772170238364,-500.0,9.988e-05,2]
[406767756,1772170238374,-500.0,9.988e-05,2]
[406767757,1772170238383,-500.0,9.988e-05,2]
[406767758,1772170238403,-500.0,9.988e-05,2]
[406767759,1772170238413,-500.0,9.988e-05,2]
[406767760,1772170238422,-500.0,9.988e-05,2]
[406767761,1772170238432,-500.0,9.988e-05,2]
[406767762,1772170238445,-500.0,9.988e-05,2]
[406767763,1772170238456,-500.0,9.988e-05,2]
[406767764,1772170238466,-500.0,9.988e-05,2]
[406767765,1772170238475,-500.0,9.988e-05,2]
[406767766,1772170238484,-500.0,9.988e-05,2]
[406767767,1772170238494,-500.0,9.988e-05,2]
[406767768,1772170238503,-500.0,9.988e-05,2]
[406767769,1772170238512,-500.0,9.988e-05,2]
[406767770,1772170238522,-500.0,9.988e-05,2]
[406767771,1772170238531,-500.0,9.988e-05,2]
[406767772,1772170238540,-500.0,9.988e-05,2]
[406767773,1772170238549,-500.0,9.988e-05,2]
[406767774,1772170238559,-500.0,9.988e-05,2]
[406767775,1772170238568,-500.0,9.988e-05,2]
[406767776,1772170238577,-500.0,9.988e-05,2]
[406767777,1772170238587,-500.0,9.988e-05,2]
[406767778,1772170238598,-500.0,9.988e-05,2]
[406767779,1772170238607,-500.0,9.988e-05,2]
[406767781,1772170238616,-500.0,9.988e-05,2]
[406767783,1772170238626,-500.0,9.988e-05,2]
[406767785,1772170238635,-500.0,9.988e-05,2]
[406767788,1772170238645,-500.0,9.988e-05,2]
[406767789,1772170238654,-500.0,9.988e-05,2]
[406767792,1772170238663,-500.0,9.988e-05,2]
[406767794,1772170238672,-1531538.56601771,9.989e-05,2]
[406767796,1772170238682,-189.52162795,9.999e-05,2]
[406767797,1772170238692,-1000.0,9.999e-05,2]
[406767800,1772170238701,-2500.0,9.999e-05,2]
[406767801,1772170238713,-216.07799896,0.0001,2]
[406767802,1772170238723,-150.0,0.00010035,2]
[406767803,1772170238732,-500.0,0.00010043,2]
[406767804,1772170238741,-213.26045152,0.00010073,2]
[406767805,1772170238750,-299.99,0.00010089,2]
[406767806,1772170238760,-9999.99,0.00010089,2]
[406767807,1772170238769,-724.51,0.00010089,2]
[406767808,1772170238779,-999.99,0.00010089,2]
[406767809,1772170238788,-8712.46,0.00010089,2]
[406767810,1772170238798,-9999.99,0.00010089,2]
[406767811,1772170238808,-150.99,0.00010089,2]
[406767812,1772170238820,-158.41955894,0.00010089,2]
[406767813,1772170238829,-202.72622012,0.00010093,2]
[406767814,1772170238838,-151.0,0.00010093,2]
[406767815,1772170238848,-151.0,0.00010093,2]
[406767816,1772170238858,-151.0,0.00010093,2]
[406767817,1772170238867,-151.0,0.00010093,2]
[406767818,1772170238877,-151.0,0.00010093,2]
[406767819,1772170238888,-151.0,0.00010093,2]
[406767820,1772170238897,-151.0,0.00010093,2]
[406767821,1772170238909,-500.0,0.00010093,2]
[406767822,1772170238919,-151.0,0.00010093,2]
[406767823,1772170238928,-500.0,0.00010093,2]
[406767824,1772170238937,-151.0,0.00010093,2]
[406767825,1772170238946,-500.0,0.00010093,2]
[406767826,1772170238956,-151.0,0.00010093,2]
[406767827,1772170238966,-500.0,0.00010093,2]
[406767828,1772170238975,-151.0,0.00010093,2]
[406767829,1772170238985,-500.0,0.00010093,2]
[406767830,1772170238994,-151.0,0.00010093,2]
[406767831,1772170239003,-500.0,0.00010093,2]
[406767832,1772170239012,-151.0,0.00010093,2]
[406767833,1772170239022,-500.0,0.00010093,2]
[406767834,1772170239031,-151.0,0.00010093,2]
[406767835,1772170239041,-500.0,0.00010093,2]
[406767836,1772170239050,-151.0,0.00010093,2]
[406767837,1772170239059,-500.0,0.00010093,2]
[406767838,1772170239067,-151.0,0.00010093,2]
[406767839,1772170239077,-500.0,0.00010093,2]
[406767840,1772170239086,-151.0,0.00010093,2]
[406767841,1772170239096,-500.0,0.00010093,2]
[406767842,1772170239107,-151.0,0.00010093,2]
[406767843,1772170239117,-151.0,0.00010093,2]
[406767844,1772170239126,-500.0,0.00010093,2]
[406767845,1772170239135,-151.0,0.00010093,2]
[406767846,1772170239143,-533.8509412,0.00010093,2]